[Event "Late-Titled-Tuesday-Blitz-February-13-2024"]
[Site "Chess.com"]
[Date "2024.02.13"]
[Round "10"]
[White "Yushko_Olga"]
[Black "koncheto"]
[Result "0-1"]
[WhiteElo "2218"]
[BlackElo "2455"]
[TimeControl "180+1"]
[EndTime "15:57:16 PST"]
[Termination "koncheto won on time"]

1. d4 {[%clk 0:02:59.6]} 1... Nf6 {[%clk 0:02:42.3]} 2. c4 {[%clk 0:02:59.6]}
2... e6 {[%clk 0:02:42.1]} 3. Nc3 {[%clk 0:02:59.4]} 3... c5 {[%clk 0:02:42.7]}
4. d5 {[%clk 0:02:58.8]} 4... exd5 {[%clk 0:02:43.6]} 5. cxd5 {[%clk 0:02:59]}
5... d6 {[%clk 0:02:41.4]} 6. e4 {[%clk 0:02:59.6]} 6... g6 {[%clk 0:02:33.7]}
7. Nf3 {[%clk 0:02:58.9]} 7... a6 {[%clk 0:02:32.4]} 8. a4 {[%clk 0:02:58.3]}
8... Bg4 {[%clk 0:02:32.8]} 9. Be2 {[%clk 0:02:56.1]} 9... Bxf3 {[%clk
0:02:32.9]} 10. Bxf3 {[%clk 0:02:56.3]} 10... Bg7 {[%clk 0:02:33.8]} 11. O-O
{[%clk 0:02:56.2]} 11... O-O {[%clk 0:02:33.9]} 12. Bf4 {[%clk 0:02:55.2]} 12...
Qe7 {[%clk 0:02:32.6]} 13. Re1 {[%clk 0:02:54.8]} 13... Nbd7 {[%clk 0:02:27.4]}
14. e5 {[%clk 0:02:54.5]} 14... Nxe5 {[%clk 0:02:11.8]} 15. Bxe5 {[%clk
0:02:53.4]} 15... dxe5 {[%clk 0:02:12.7]} 16. d6 {[%clk 0:02:53.4]} 16... Qd7
{[%clk 0:01:47.1]} 17. Rxe5 {[%clk 0:02:50.4]} 17... Rad8 {[%clk 0:01:44.3]} 18.
Re7 {[%clk 0:02:46.5]} 18... Qxd6 {[%clk 0:01:42.2]} 19. Qxd6 {[%clk 0:02:47.4]}
19... Rxd6 {[%clk 0:01:43.1]} 20. Rxb7 {[%clk 0:02:38.8]} 20... Rfd8 {[%clk
0:01:42.3]} 21. Re1 {[%clk 0:02:33.8]} 21... Nd7 {[%clk 0:01:36.3]} 22. g3
{[%clk 0:02:22.6]} 22... Ne5 {[%clk 0:01:30.9]} 23. Bg2 {[%clk 0:02:20.9]} 23...
Nd3 {[%clk 0:01:27.1]} 24. Ree7 {[%clk 0:02:15.5]} 24... Rf8 {[%clk 0:00:47.9]}
25. Red7 {[%clk 0:02:08.5]} 25... Rxd7 {[%clk 0:00:43.7]} 26. Rxd7 {[%clk
0:02:08.1]} 26... Nxb2 {[%clk 0:00:44.6]} 27. Nd5 {[%clk 0:01:57.5]} 27... Nxa4
{[%clk 0:00:43.3]} 28. Ne7+ {[%clk 0:01:55.3]} 28... Kh8 {[%clk 0:00:43.4]} 29.
Bd5 {[%clk 0:01:54.6]} 29... Nb6 {[%clk 0:00:42.4]} 30. Rd6 {[%clk 0:01:54]}
30... Nxd5 {[%clk 0:00:40]} 31. Rxd5 {[%clk 0:01:54.6]} 31... c4 {[%clk
0:00:40.5]} 32. Rc5 {[%clk 0:01:54]} 32... c3 {[%clk 0:00:39.5]} 33. Nd5 {[%clk
0:01:53.5]} 33... Bd4 {[%clk 0:00:34.9]} 34. Rc6 {[%clk 0:01:48.9]} 34... a5
{[%clk 0:00:34]} 35. Nxc3 {[%clk 0:01:48.7]} 35... Bxc3 {[%clk 0:00:34.1]} 36.
Rxc3 {[%clk 0:01:48.6]} 36... Ra8 {[%clk 0:00:35]} 37. Ra3 {[%clk 0:01:47.8]}
37... a4 {[%clk 0:00:35.4]} 38. Kg2 {[%clk 0:01:47.7]} 38... Kg7 {[%clk
0:00:35.7]} 39. f4 {[%clk 0:01:46.8]} 39... Kf6 {[%clk 0:00:36.1]} 40. Kf3
{[%clk 0:01:47.4]} 40... Ke6 {[%clk 0:00:34.5]} 41. Ke3 {[%clk 0:01:47.1]} 41...
Kd6 {[%clk 0:00:35.1]} 42. Ke4 {[%clk 0:01:47.2]} 42... Kc5 {[%clk 0:00:35.4]}
43. Ke5 {[%clk 0:01:45.9]} 43... Kb4 {[%clk 0:00:35.7]} 44. Ra1 {[%clk
0:01:45.5]} 44... h5 {[%clk 0:00:35.7]} 45. Kf6 {[%clk 0:01:45.6]} 45... Ra7
{[%clk 0:00:36.3]} 46. Rb1+ {[%clk 0:01:44.8]} 46... Kc3 {[%clk 0:00:36.5]} 47.
Ra1 {[%clk 0:01:43.9]} 47... a3 {[%clk 0:00:37]} 48. h3 {[%clk 0:01:43.5]} 48...
Kb2 {[%clk 0:00:36.9]} 49. Re1 {[%clk 0:01:41]} 49... a2 {[%clk 0:00:37.3]} 50.
g4 {[%clk 0:01:40.8]} 50... hxg4 {[%clk 0:00:35.7]} 51. hxg4 {[%clk 0:01:39.9]}
51... a1=Q {[%clk 0:00:36.6]} 52. Rxa1 {[%clk 0:01:38.2]} 52... Kxa1 {[%clk
0:00:37.5]} 53. f5 {[%clk 0:01:29.3]} 53... gxf5 {[%clk 0:00:38.4]} 54. gxf5
{[%clk 0:01:28.5]} 54... Kb2 {[%clk 0:00:37.2]} 55. Ke5 {[%clk 0:01:28.6]} 55...
Kc3 {[%clk 0:00:38.1]} 56. Ke4 {[%clk 0:01:28.5]} 56... Kc4 {[%clk 0:00:38.4]}
57. Ke5 {[%clk 0:01:28]} 57... Kc5 {[%clk 0:00:37.8]} 58. Kf6 {[%clk 0:01:25.6]}
58... Kd6 {[%clk 0:00:37.7]} 59. Kg5 {[%clk 0:01:24.7]} 59... Ke5 {[%clk
0:00:38]} 60. f6 {[%clk 0:01:25.1]} 60... Ke6 {[%clk 0:00:38.4]} 61. Kh6 {[%clk
0:01:24.4]} 61... Ra8 {[%clk 0:00:28.9]} 62. Kg7 {[%clk 0:01:23.4]} 62... Rb8
{[%clk 0:00:28.8]} 63. Kh7 {[%clk 0:01:22.7]} 63... Ra8 {[%clk 0:00:26.5]} 64.
Kh6 {[%clk 0:01:21.5]} 64... Ra7 {[%clk 0:00:26.6]} 65. Kg7 {[%clk 0:01:21.3]}
65... Rb7 {[%clk 0:00:27.5]} 66. Kf8 {[%clk 0:01:20.2]} 66... Rb6 {[%clk
0:00:28.4]} 67. Kg7 {[%clk 0:01:19.7]} 67... Ra6 {[%clk 0:00:29.3]} 68. Kf8
{[%clk 0:01:19.3]} 68... Ra5 {[%clk 0:00:30.2]} 69. Kg7 {[%clk 0:01:19.5]} 69...
Rb5 {[%clk 0:00:31.1]} 70. Kf8 {[%clk 0:01:19]} 70... Rb4 {[%clk 0:00:32]} 71.
Kg7 {[%clk 0:01:19.3]} 71... Ra4 {[%clk 0:00:32.9]} 72. Kg8 {[%clk 0:01:19.5]}
72... Ra3 {[%clk 0:00:33.8]} 73. Kf8 {[%clk 0:01:19.8]} 73... Rb3 {[%clk
0:00:34.7]} 74. Kg7 {[%clk 0:01:20]} 74... Rb2 {[%clk 0:00:35.6]} 75. Kg8 {[%clk
0:01:20.1]} 75... Ra2 {[%clk 0:00:36.5]} 76. Kf8 {[%clk 0:01:20.6]} 76... Ra1
{[%clk 0:00:37.4]} 77. Kg7 {[%clk 0:01:21]} 77... Rb1 {[%clk 0:00:38.3]} 78. Kg8
{[%clk 0:01:21.5]} 78... Rc1 {[%clk 0:00:39.2]} 79. Kf8 {[%clk 0:01:21.8]} 79...
Rc2 {[%clk 0:00:40.1]} 80. Kg7 {[%clk 0:01:22.3]} 80... Rc1 {[%clk 0:00:40.5]}
81. Kg8 {[%clk 0:01:22.9]} 81... Rd1 {[%clk 0:00:41.4]} 82. Kf8 {[%clk
0:01:23.4]} 82... Rd2 {[%clk 0:00:42.3]} 83. Kg7 {[%clk 0:01:23.7]} 83... Re2
{[%clk 0:00:42.8]} 84. Kg8 {[%clk 0:01:24]} 84... Re1 {[%clk 0:00:43.4]} 85. Kf8
{[%clk 0:01:24.6]} 85... Rf1 {[%clk 0:00:44]} 86. Kg7 {[%clk 0:01:23.3]} 86...
Rf2 {[%clk 0:00:44.4]} 87. Kf8 {[%clk 0:01:23.2]} 87... Rf3 {[%clk 0:00:45.3]}
88. Kg8 {[%clk 0:01:23.4]} 88... Rf4 {[%clk 0:00:46.2]} 89. Kf8 {[%clk
0:01:23.8]} 89... Rf5 {[%clk 0:00:47.1]} 90. Kg7 {[%clk 0:01:22.8]} 90... Rh5
{[%clk 0:00:47.1]} 91. Kf8 {[%clk 0:01:20]} 91... Rh4 {[%clk 0:00:48]} 92. Kg7
{[%clk 0:01:20]} 92... Rh3 {[%clk 0:00:48.9]} 93. Kf8 {[%clk 0:01:20.4]} 93...
Rh2 {[%clk 0:00:49.8]} 94. Kg7 {[%clk 0:01:20.9]} 94... Rh1 {[%clk 0:00:50.7]}
95. Kf8 {[%clk 0:01:21.4]} 95... Kxf6 {[%clk 0:00:50.1]} 96. Ke8 {[%clk
0:01:20.8]} 96... Rh2 {[%clk 0:00:51]} 97. Kd8 {[%clk 0:01:21]} 97... Rh3 {[%clk
0:00:51.9]} 98. Ke8 {[%clk 0:00:01.9]} 98... Re3+ {[%clk 0:00:52.8]} 99. Kd7
{[%clk 0:00:01.8]} 99... Re4 {[%clk 0:00:48.8]} 100. Kd6 {[%clk 0:00:01.6]}
100... Re5 {[%clk 0:00:48.9]} 101. Kc6 {[%clk 0:00:01.8]} 101... Re6+ {[%clk
0:00:49.7]} 102. Kd5 {[%clk 0:00:01.9]} 102... Ke7 {[%clk 0:00:50]} 0-1

[Event "Late-Titled-Tuesday-Blitz-February-13-2024"]
[Site "Chess.com"]
[Date "2024.02.13"]
[Round "10"]
[White "dosto07"]
[Black "nitpicker"]
[Result "1/2-1/2"]
[WhiteElo "2491"]
[BlackElo "2237"]
[TimeControl "180+1"]
[EndTime "15:57:18 PST"]
[Termination "Game drawn by 50-move rule"]

1. Nf3 {[%clk 0:02:48.1]} 1... Nf6 {[%clk 0:02:58.1]} 2. c4 {[%clk 0:02:46.3]}
2... e6 {[%clk 0:02:54.5]} 3. g3 {[%clk 0:02:44.2]} 3... d5 {[%clk 0:02:51.4]}
4. Bg2 {[%clk 0:02:43.5]} 4... c6 {[%clk 0:02:51]} 5. b3 {[%clk 0:02:43.4]} 5...
Be7 {[%clk 0:02:50.5]} 6. Bb2 {[%clk 0:02:43.8]} 6... O-O {[%clk 0:02:50.2]} 7.
O-O {[%clk 0:02:44.5]} 7... a5 {[%clk 0:02:49.5]} 8. a3 {[%clk 0:02:42]} 8...
Nbd7 {[%clk 0:02:42.7]} 9. d3 {[%clk 0:02:42]} 9... b5 {[%clk 0:02:32.2]} 10.
Nbd2 {[%clk 0:02:41.1]} 10... Qb6 {[%clk 0:02:31.4]} 11. Qc2 {[%clk 0:02:36.7]}
11... Ba6 {[%clk 0:02:24.6]} 12. Rab1 {[%clk 0:02:27.8]} 12... Rac8 {[%clk
0:02:24.3]} 13. d4 {[%clk 0:02:18.4]} 13... c5 {[%clk 0:02:15.1]} 14. dxc5
{[%clk 0:02:13.7]} 14... Bxc5 {[%clk 0:02:07.9]} 15. Ne5 {[%clk 0:01:42.9]}
15... Qa7 {[%clk 0:01:46.2]} 16. Nxd7 {[%clk 0:01:40.5]} 16... Nxd7 {[%clk
0:01:37.6]} 17. Qc3 {[%clk 0:01:35.5]} 17... Nf6 {[%clk 0:01:18.3]} 18. Qxa5
{[%clk 0:01:32.8]} 18... bxc4 {[%clk 0:01:14.6]} 19. bxc4 {[%clk 0:01:33.1]}
19... Bxc4 {[%clk 0:01:06.5]} 20. Nxc4 {[%clk 0:01:27.7]} 20... dxc4 {[%clk
0:01:01.2]} 21. Qxa7 {[%clk 0:01:26.8]} 21... Bxa7 {[%clk 0:01:02.1]} 22. Bxf6
{[%clk 0:01:15]} 22... gxf6 {[%clk 0:01:00.6]} 23. Rb7 {[%clk 0:01:15.6]} 23...
Bc5 {[%clk 0:00:53.4]} 24. a4 {[%clk 0:01:15.1]} 24... c3 {[%clk 0:00:45.7]} 25.
Rc1 {[%clk 0:01:13.5]} 25... Ba3 {[%clk 0:00:43.7]} 26. Rc2 {[%clk 0:01:09.8]}
26... Bb2 {[%clk 0:00:43.4]} 27. Be4 {[%clk 0:01:07.5]} 27... Rc4 {[%clk
0:00:34.8]} 28. Rbxb2 {[%clk 0:01:01.8]} 28... Rxe4 {[%clk 0:00:26.6]} 29. Rxc3
{[%clk 0:01:00.7]} 29... Rxa4 {[%clk 0:00:27.3]} 30. Rb7 {[%clk 0:00:57.2]}
30... f5 {[%clk 0:00:23.5]} 31. Rcc7 {[%clk 0:00:56]} 31... Kg7 {[%clk
0:00:23.6]} 32. Kg2 {[%clk 0:00:56.2]} 32... f4 {[%clk 0:00:22.5]} 33. Kf3
{[%clk 0:00:54.6]} 33... fxg3 {[%clk 0:00:22]} 34. hxg3 {[%clk 0:00:55.2]} 34...
Kf6 {[%clk 0:00:21.9]} 35. e3 {[%clk 0:00:55.1]} 35... Ra2 {[%clk 0:00:21.2]}
36. g4 {[%clk 0:00:54.4]} 36... Kg6 {[%clk 0:00:20.8]} 37. Kg3 {[%clk
0:00:54.9]} 37... h6 {[%clk 0:00:21]} 38. f3 {[%clk 0:00:53]} 38... Re2 {[%clk
0:00:19.5]} 39. e4 {[%clk 0:00:53]} 39... Ra2 {[%clk 0:00:18.8]} 40. Kf4 {[%clk
0:00:51.6]} 40... Ra3 {[%clk 0:00:14.3]} 41. Rd7 {[%clk 0:00:48.2]} 41... Rc3
{[%clk 0:00:13.4]} 42. Ra7 {[%clk 0:00:47.8]} 42... Rb3 {[%clk 0:00:13.2]} 43.
Kg3 {[%clk 0:00:48]} 43... Rc3 {[%clk 0:00:13]} 44. Kf2 {[%clk 0:00:47.2]} 44...
Rc2+ {[%clk 0:00:11.6]} 45. Ke3 {[%clk 0:00:47.1]} 45... Rc3+ {[%clk 0:00:12]}
46. Ke2 {[%clk 0:00:47.4]} 46... Rb3 {[%clk 0:00:12.1]} 47. e5 {[%clk
0:00:40.8]} 47... Rc3 {[%clk 0:00:09]} 48. Kf2 {[%clk 0:00:38.1]} 48... Rb3
{[%clk 0:00:08.9]} 49. f4 {[%clk 0:00:36.6]} 49... Rc3 {[%clk 0:00:07.3]} 50.
Kg2 {[%clk 0:00:31.1]} 50... Rb3 {[%clk 0:00:07.3]} 51. Kf2 {[%clk 0:00:28.3]}
51... Rc3 {[%clk 0:00:07.3]} 52. Ke2 {[%clk 0:00:28.5]} 52... Rb3 {[%clk
0:00:07.6]} 53. Rd3 {[%clk 0:00:26.5]} 53... Rxd3 {[%clk 0:00:06.4]} 54. Kxd3
{[%clk 0:00:26.8]} 54... h5 {[%clk 0:00:06.2]} 55. gxh5+ {[%clk 0:00:25.5]}
55... Kxh5 {[%clk 0:00:06.5]} 56. Ke4 {[%clk 0:00:25.2]} 56... Kg4 {[%clk
0:00:06.8]} 57. Ra1 {[%clk 0:00:24.4]} 57... f5+ {[%clk 0:00:06.6]} 58. exf6
{[%clk 0:00:22.6]} 58... Rxf6 {[%clk 0:00:06.1]} 59. Rg1+ {[%clk 0:00:23.2]}
59... Kh5 {[%clk 0:00:04.2]} 60. Rg5+ {[%clk 0:00:21.9]} 60... Kh6 {[%clk
0:00:03.8]} 61. Rg8 {[%clk 0:00:20.7]} 61... Rg6 {[%clk 0:00:03.4]} 62. Rh8+
{[%clk 0:00:18.8]} 62... Kg7 {[%clk 0:00:03.3]} 63. Rh2 {[%clk 0:00:19.5]} 63...
Kf6 {[%clk 0:00:03.5]} 64. Rh8 {[%clk 0:00:17.7]} 64... Rg7 {[%clk 0:00:03.5]}
65. Rf8+ {[%clk 0:00:17.6]} 65... Ke7 {[%clk 0:00:03.8]} 66. Ra8 {[%clk
0:00:17.5]} 66... Kf6 {[%clk 0:00:04.1]} 67. Ra6 {[%clk 0:00:17.2]} 67... Rg1
{[%clk 0:00:03.4]} 68. Ke3 {[%clk 0:00:13.7]} 68... Re1+ {[%clk 0:00:03.2]} 69.
Kf2 {[%clk 0:00:13.7]} 69... Re4 {[%clk 0:00:03.2]} 70. Kf3 {[%clk 0:00:14.1]}
70... Re1 {[%clk 0:00:03.5]} 71. Rb6 {[%clk 0:00:14.7]} 71... Rf1+ {[%clk
0:00:03.1]} 72. Ke3 {[%clk 0:00:15.2]} 72... Re1+ {[%clk 0:00:03.3]} 73. Kf2
{[%clk 0:00:15.7]} 73... Re4 {[%clk 0:00:03.6]} 74. Kg3 {[%clk 0:00:15.7]} 74...
Re3+ {[%clk 0:00:03.3]} 75. Kg4 {[%clk 0:00:15.7]} 75... Re4 {[%clk 0:00:03.9]}
76. Rd6 {[%clk 0:00:15.7]} 76... Rc4 {[%clk 0:00:03.6]} 77. Ra6 {[%clk
0:00:15.7]} 77... Rb4 {[%clk 0:00:03.6]} 78. Ra8 {[%clk 0:00:16]} 78... Rc4
{[%clk 0:00:03.9]} 79. Rf8+ {[%clk 0:00:16.1]} 79... Ke7 {[%clk 0:00:04.1]} 80.
Rh8 {[%clk 0:00:16.4]} 80... Kf6 {[%clk 0:00:04.5]} 81. Rh6+ {[%clk 0:00:16.5]}
81... Kf7 {[%clk 0:00:04.8]} 82. Kg5 {[%clk 0:00:16.5]} 82... Rc5+ {[%clk
0:00:04.8]} 83. Kg4 {[%clk 0:00:17]} 83... Rf5 {[%clk 0:00:05]} 84. Rh3 {[%clk
0:00:16.7]} 84... Rf6 {[%clk 0:00:05.1]} 85. Re3 {[%clk 0:00:16.6]} 85... Rf5
{[%clk 0:00:05.2]} 86. Re4 {[%clk 0:00:16.9]} 86... Rf6 {[%clk 0:00:05.2]} 87.
Re5 {[%clk 0:00:17.2]} 87... Rg6+ {[%clk 0:00:04.8]} 88. Kf3 {[%clk 0:00:17.6]}
88... Kf6 {[%clk 0:00:05.2]} 89. Ke4 {[%clk 0:00:17.8]} 89... Rg1 {[%clk
0:00:05]} 90. Ra5 {[%clk 0:00:17.4]} 90... Re1+ {[%clk 0:00:05]} 91. Kf3 {[%clk
0:00:17.8]} 91... Rf1+ {[%clk 0:00:05.3]} 92. Kg3 {[%clk 0:00:17.7]} 92... Rg1+
{[%clk 0:00:05.3]} 93. Kf2 {[%clk 0:00:18.2]} 93... Rc1 {[%clk 0:00:04.8]} 94.
Ke2 {[%clk 0:00:17.6]} 94... Rc4 {[%clk 0:00:04.5]} 95. Ke3 {[%clk 0:00:17.1]}
95... Rc3+ {[%clk 0:00:04.7]} 96. Kd4 {[%clk 0:00:17.3]} 96... Rf3 {[%clk
0:00:04.6]} 97. Ke4 {[%clk 0:00:17.9]} 97... Rf1 {[%clk 0:00:05.3]} 98. Ra8
{[%clk 0:00:18.3]} 98... Re1+ {[%clk 0:00:05]} 99. Kd3 {[%clk 0:00:18.6]} 99...
Rf1 {[%clk 0:00:05]} 100. Ke3 {[%clk 0:00:18.6]} 100... Re1+ {[%clk 0:00:05.2]}
101. Kf2 {[%clk 0:00:19]} 101... Re4 {[%clk 0:00:05]} 102. Kf3 {[%clk
0:00:19.4]} 102... Re1 {[%clk 0:00:05.7]} 103. Rf8+ {[%clk 0:00:19.5]} 103...
Ke7 {[%clk 0:00:05.2]} 104. Rc8 {[%clk 0:00:20.4]} 104... Kf6 {[%clk 0:00:05.2]}
105. Rf8+ {[%clk 0:00:19.9]} 105... Ke7 {[%clk 0:00:04.9]} 106. Ra8 {[%clk
0:00:20.8]} 106... Kf6 {[%clk 0:00:05.2]} 107. Ra5 {[%clk 0:00:20.8]} 107...
Rf1+ {[%clk 0:00:04.6]} 108. Kg3 {[%clk 0:00:21.4]} 108... Rg1+ {[%clk
0:00:04.2]} 1/2-1/2

[Event "Late-Titled-Tuesday-Blitz-February-13-2024"]
[Site "Chess.com"]
[Date "2024.02.13"]
[Round "10"]
[White "wanyaland"]
[Black "Yurovskykh_Oleksandr"]
[Result "1/2-1/2"]
[WhiteElo "2493"]
[BlackElo "2670"]
[TimeControl "180+1"]
[EndTime "15:57:32 PST"]
[Termination "Game drawn by 50-move rule"]

1. d4 {[%clk 0:02:59.4]} 1... d5 {[%clk 0:02:55.9]} 2. c4 {[%clk 0:02:59]} 2...
dxc4 {[%clk 0:02:51.5]} 3. e3 {[%clk 0:02:58.4]} 3... Nf6 {[%clk 0:02:51.3]} 4.
Bxc4 {[%clk 0:02:57.6]} 4... e6 {[%clk 0:02:50.8]} 5. Nf3 {[%clk 0:02:58]} 5...
c5 {[%clk 0:02:50.7]} 6. O-O {[%clk 0:02:58.6]} 6... Nc6 {[%clk 0:02:51.2]} 7.
Qe2 {[%clk 0:02:58.8]} 7... cxd4 {[%clk 0:02:51.4]} 8. Rd1 {[%clk 0:02:59.1]}
8... Be7 {[%clk 0:02:51.9]} 9. exd4 {[%clk 0:02:57.5]} 9... O-O {[%clk
0:02:51.4]} 10. Nc3 {[%clk 0:02:57.1]} 10... Na5 {[%clk 0:02:50.7]} 11. Bd3
{[%clk 0:02:55.7]} 11... b6 {[%clk 0:02:51]} 12. Ne5 {[%clk 0:02:54.8]} 12...
Bb7 {[%clk 0:02:51.1]} 13. Bg5 {[%clk 0:02:53.2]} 13... Rc8 {[%clk 0:02:46.4]}
14. Rac1 {[%clk 0:02:51.6]} 14... Nd5 {[%clk 0:02:45.5]} 15. Qh5 {[%clk
0:02:31.3]} 15... f5 {[%clk 0:02:39.7]} 16. Bd2 {[%clk 0:02:24.7]} 16... Bf6
{[%clk 0:02:33.1]} 17. Bb1 {[%clk 0:02:22.2]} 17... Bxe5 {[%clk 0:02:27.4]} 18.
dxe5 {[%clk 0:02:20.3]} 18... Nc4 {[%clk 0:02:28]} 19. Bg5 {[%clk 0:02:15.7]}
19... Qe8 {[%clk 0:02:26.6]} 20. Qxe8 {[%clk 0:02:11.6]} 20... Rfxe8 {[%clk
0:02:27.5]} 21. Nb5 {[%clk 0:02:05.1]} 21... h6 {[%clk 0:02:11.3]} 22. Nxa7
{[%clk 0:01:38.8]} 22... hxg5 {[%clk 0:02:08.4]} 23. Nxc8 {[%clk 0:01:38.7]}
23... Rxc8 {[%clk 0:02:07.9]} 24. b3 {[%clk 0:01:39.1]} 24... Nxe5 {[%clk
0:01:56.1]} 25. Rxc8+ {[%clk 0:01:38]} 25... Bxc8 {[%clk 0:01:57]} 26. Re1
{[%clk 0:01:37.8]} 26... Nc6 {[%clk 0:01:27.6]} 27. Bxf5 {[%clk 0:01:31.6]}
27... exf5 {[%clk 0:01:22]} 28. Re8+ {[%clk 0:01:29.5]} 28... Kf7 {[%clk
0:01:22.4]} 29. Rxc8 {[%clk 0:01:29.5]} 29... Nd4 {[%clk 0:01:22.5]} 30. Rb8
{[%clk 0:01:24.5]} 30... g4 {[%clk 0:01:20.1]} 31. Rb7+ {[%clk 0:01:23.3]} 31...
Kf6 {[%clk 0:01:14.2]} 32. Rd7 {[%clk 0:01:22.2]} 32... Nc3 {[%clk 0:01:10.5]}
33. Kf1 {[%clk 0:01:14.6]} 33... Ke5 {[%clk 0:01:06]} 34. Rxg7 {[%clk
0:01:07.1]} 34... Nxa2 {[%clk 0:01:05.4]} 35. h3 {[%clk 0:01:04]} 35... gxh3
{[%clk 0:01:03.3]} 36. gxh3 {[%clk 0:01:04.2]} 36... Nxb3 {[%clk 0:00:57]} 37.
Rb7 {[%clk 0:01:01.4]} 37... Nd2+ {[%clk 0:00:51.3]} 38. Ke2 {[%clk 0:01:00.1]}
38... Nc4 {[%clk 0:00:51.1]} 39. Kd3 {[%clk 0:00:58.6]} 39... Kd5 {[%clk
0:00:42.8]} 40. h4 {[%clk 0:00:48.5]} 40... Nc1+ {[%clk 0:00:42.4]} 41. Kc2
{[%clk 0:00:45.4]} 41... Ne2 {[%clk 0:00:31.3]} 42. h5 {[%clk 0:00:44]} 42...
Nd4+ {[%clk 0:00:27.7]} 43. Kc3 {[%clk 0:00:42.2]} 43... Ne2+ {[%clk 0:00:24.6]}
44. Kb4 {[%clk 0:00:41.2]} 44... Kc6 {[%clk 0:00:18]} 45. Rg7 {[%clk 0:00:36.2]}
45... Ne5 {[%clk 0:00:14.1]} 46. h6 {[%clk 0:00:35.6]} 46... Nf4 {[%clk
0:00:14.6]} 47. h7 {[%clk 0:00:34.2]} 47... Neg6 {[%clk 0:00:14.7]} 48. Kc4
{[%clk 0:00:32.2]} 48... b5+ {[%clk 0:00:14]} 49. Kb4 {[%clk 0:00:30.2]} 49...
Kd5 {[%clk 0:00:14.4]} 50. Kxb5 {[%clk 0:00:29.1]} 50... Ke4 {[%clk 0:00:13.4]}
51. Kc6 {[%clk 0:00:29.1]} 51... Kf3 {[%clk 0:00:13.3]} 52. Kd6 {[%clk
0:00:29.2]} 52... Kxf2 {[%clk 0:00:13.7]} 53. Rf7 {[%clk 0:00:26.1]} 53... Kg3
{[%clk 0:00:10.5]} 54. Rxf5 {[%clk 0:00:25.9]} 54... Kg4 {[%clk 0:00:11]} 55.
Rf8 {[%clk 0:00:25]} 55... Kg5 {[%clk 0:00:08.3]} 56. h8=Q {[%clk 0:00:23.6]}
56... Nxh8 {[%clk 0:00:08]} 57. Rxh8 {[%clk 0:00:24.5]} 57... Kf5 {[%clk
0:00:08.2]} 58. Rf8+ {[%clk 0:00:23.9]} 58... Ke4 {[%clk 0:00:08.4]} 59. Kd7
{[%clk 0:00:20.5]} 59... Nd5 {[%clk 0:00:08.2]} 60. Re8+ {[%clk 0:00:20]} 60...
Kd4 {[%clk 0:00:08.5]} 61. Kd6 {[%clk 0:00:20.6]} 61... Nc3 {[%clk 0:00:08.4]}
62. Re1 {[%clk 0:00:20.1]} 62... Ne4+ {[%clk 0:00:08.6]} 63. Ke6 {[%clk
0:00:19.7]} 63... Nc5+ {[%clk 0:00:08.9]} 64. Kf5 {[%clk 0:00:19.3]} 64... Kd5
{[%clk 0:00:09.1]} 65. Rd1+ {[%clk 0:00:19.8]} 65... Kc4 {[%clk 0:00:09.5]} 66.
Ke5 {[%clk 0:00:20.1]} 66... Nd3+ {[%clk 0:00:09.8]} 67. Kf5 {[%clk 0:00:19.8]}
67... Nc5 {[%clk 0:00:10.1]} 68. Rd8 {[%clk 0:00:20]} 68... Nd3 {[%clk
0:00:09.7]} 69. Rc8+ {[%clk 0:00:20.9]} 69... Kd4 {[%clk 0:00:09.6]} 70. Kg4
{[%clk 0:00:20.6]} 70... Ne5+ {[%clk 0:00:09.5]} 71. Kg3 {[%clk 0:00:21.5]}
71... Nd3 {[%clk 0:00:10.4]} 72. Rd8+ {[%clk 0:00:21.3]} 72... Ke3 {[%clk
0:00:10.4]} 73. Kg2 {[%clk 0:00:21]} 73... Nf4+ {[%clk 0:00:10.3]} 74. Kg1
{[%clk 0:00:21.9]} 74... Nd3 {[%clk 0:00:11.2]} 75. Re8+ {[%clk 0:00:22.3]}
75... Kd4 {[%clk 0:00:11.6]} 76. Kf1 {[%clk 0:00:22.9]} 76... Ne5 {[%clk
0:00:11.7]} 77. Ke1 {[%clk 0:00:23.7]} 77... Ke4 {[%clk 0:00:12.2]} 78. Ke2
{[%clk 0:00:22.1]} 78... Kd4 {[%clk 0:00:12.6]} 79. Rd8+ {[%clk 0:00:21.6]}
79... Ke4 {[%clk 0:00:13]} 80. Rd6 {[%clk 0:00:20.7]} 80... Nc4 {[%clk
0:00:12.7]} 81. Rd8 {[%clk 0:00:19.6]} 81... Ne5 {[%clk 0:00:12.5]} 82. Kf2
{[%clk 0:00:19.7]} 82... Nd3+ {[%clk 0:00:12.6]} 83. Kg3 {[%clk 0:00:20.6]}
83... Ne5 {[%clk 0:00:13.5]} 84. Kh4 {[%clk 0:00:20.6]} 84... Nf3+ {[%clk
0:00:13.6]} 85. Kg4 {[%clk 0:00:20.2]} 85... Ne5+ {[%clk 0:00:14.5]} 86. Kg5
{[%clk 0:00:21]} 86... Nf3+ {[%clk 0:00:14.9]} 87. Kf6 {[%clk 0:00:21.1]} 87...
Nd4 {[%clk 0:00:14.8]} 88. Rd7 {[%clk 0:00:20.6]} 88... Nf3 {[%clk 0:00:14.8]}
89. Re7+ {[%clk 0:00:20.5]} 89... Kd5 {[%clk 0:00:13.2]} 90. Kf5 {[%clk
0:00:20.4]} 90... Nd4+ {[%clk 0:00:13.5]} 91. Kf4 {[%clk 0:00:19.6]} 91... Ne6+
{[%clk 0:00:13.9]} 92. Kf3 {[%clk 0:00:18.4]} 92... Nd4+ {[%clk 0:00:14]} 93.
Kf2 {[%clk 0:00:17.9]} 93... Ne6 {[%clk 0:00:14.1]} 94. Rd7+ {[%clk 0:00:17]}
94... Ke5 {[%clk 0:00:14.5]} 95. Rd2 {[%clk 0:00:17.4]} 95... Ng5 {[%clk
0:00:13.5]} 96. Re2+ {[%clk 0:00:18.3]} 96... Kd5 {[%clk 0:00:12.8]} 97. Kg3
{[%clk 0:00:19.2]} 97... Ne4+ {[%clk 0:00:12.9]} 98. Kf4 {[%clk 0:00:20]} 98...
Nd6 {[%clk 0:00:13.5]} 99. Rd2+ {[%clk 0:00:20.1]} 99... Ke6 {[%clk 0:00:14]}
100. Rd3 {[%clk 0:00:19.5]} 100... Nf7 {[%clk 0:00:13.3]} 101. Re3+ {[%clk
0:00:20.4]} 101... Kd5 {[%clk 0:00:13.3]} 102. Re7 {[%clk 0:00:19.4]} 102... Nd6
{[%clk 0:00:13.4]} 103. Rd7 {[%clk 0:00:19.8]} 103... Ke6 {[%clk 0:00:13.7]}
104. Rd8 {[%clk 0:00:20.7]} 104... Kd5 {[%clk 0:00:14.1]} 105. Ke3 {[%clk
0:00:19.7]} 105... Ke5 {[%clk 0:00:14.2]} 106. Rd7 {[%clk 0:00:19.3]} 106... Kd5
{[%clk 0:00:14.3]} 107. Ra7 {[%clk 0:00:19.8]} 1/2-1/2